bitfinex/quotes_BTCUSD_20251009
["timestamp","ask_amount","ask_price","bid_price","bid_amount"]
[1760035062846,0.00986342,120610.0,120600.0,0.45242245]
[1760035063289,0.00986342,120610.0,120600.0,0.38879953]
[1760035065038,0.02762277,120610.0,120600.0,0.30382747]
[1760035065433,0.02762277,120610.0,120600.0,0.38694953]
[1760035065648,0.00986342,120610.0,120600.0,0.38694953]
[1760035066097,0.00986342,120610.0,120600.0,0.62358953]
[1760035067802,0.00986342,120610.0,120600.0,0.38694953]
[1760035068014,0.00986342,120610.0,120600.0,0.62358953]
[1760035069112,0.00986342,120610.0,120600.0,0.38694953]
[1760035069545,0.00986342,120610.0,120600.0,0.62358953]
[1760035070149,0.00986342,120610.0,120600.0,0.68672488]
[1760035072270,0.00986342,120610.0,120600.0,0.45008488]
[1760035072469,0.00986342,120610.0,120600.0,0.68672488]
[1760035072728,0.02768391,120610.0,120600.0,0.38644953]
[1760035076316,0.00986342,120610.0,120600.0,0.62304953]
[1760035076556,0.02770758,120610.0,120600.0,0.62304953]
[1760035077212,0.00991199,120610.0,120600.0,0.62304953]
[1760035078599,0.00991199,120610.0,120600.0,0.38644953]
[1760035078859,0.00991199,120610.0,120600.0,0.62304953]
[1760035079210,0.00991199,120610.0,120600.0,0.68402978]
[1760035080638,0.00991199,120610.0,120600.0,0.44742978]
[1760035080923,0.00991199,120610.0,120600.0,0.68402978]
[1760035083220,0.00216289,120610.0,120600.0,0.68402978]
[1760035083945,0.00216289,120610.0,120600.0,0.44742978]
[1760035084156,0.00216289,120610.0,120600.0,0.68402978]
[1760035085415,0.00216289,120610.0,120600.0,0.44742978]
[1760035085753,0.00216289,120610.0,120600.0,0.68398978]
[1760035086633,0.00216289,120610.0,120600.0,0.62300953]
[1760035086998,0.00216289,120610.0,120600.0,0.38644953]
[1760035087159,0.00216289,120610.0,120600.0,0.07828]
[1760035087160,0.19351661,120610.0,120600.0,0.07828]
[1760035087390,0.19351661,120610.0,120600.0,0.30290747]
[1760035087391,0.17780661,120610.0,120600.0,0.30290747]
[1760035087798,0.19351661,120610.0,120600.0,0.24411747]
[1760035088252,0.32546931,120610.0,120600.0,0.002]
[1760035088451,0.58525861,120610.0,120600.0,0.001]
[1760035088634,0.60310325,120610.0,120600.0,0.001]
[1760035088843,0.16584933,120600.0,120580.0,0.25675159]
[1760035089016,0.16585123,120590.0,120580.0,0.25675159]
[1760035089218,0.16585123,120590.0,120580.0,0.29590159]
[1760035089826,0.40240933,120600.0,120590.0,0.16585123]
[1760035090033,0.50431933,120600.0,120590.0,0.20500123]
[1760035090443,0.50431933,120600.0,120590.0,0.23432123]
[1760035090795,0.41811933,120600.0,120590.0,0.23432123]
[1760035091004,0.0862,120600.0,120590.0,0.29311123]
[1760035091215,8.406e-05,120610.0,120600.0,0.16583747]
[1760035091419,0.10128406,120610.0,120600.0,0.19515747]
[1760035091537,8.406e-05,120610.0,120600.0,0.29309747]
[1760035093130,0.16590778,120610.0,120600.0,0.29309747]
[1760035093335,8.406e-05,120610.0,120600.0,0.29309747]
[1760035096594,0.18161778,120610.0,120600.0,0.23430747]
[1760035097032,0.18369661,120610.0,120600.0,0.06847]
[1760035097235,0.18369661,120610.0,120600.0,0.23430747]
[1760035097461,0.02769289,120610.0,120600.0,0.20498747]
[1760035097663,0.42025661,120610.0,120600.0,0.23430747]
[1760035098305,0.42025661,120610.0,120590.0,0.19517123]
[1760035098306,0.16583747,120600.0,120590.0,0.19517123]
[1760035098745,0.16739672,120600.0,120590.0,0.23432123]
[1760035098947,0.18310672,120600.0,120590.0,0.23432123]
[1760035099819,0.16585123,120590.0,120580.0,0.1979614]
[1760035100036,0.19138123,120590.0,120580.0,0.2371114]
[1760035100257,0.42898082,120590.0,120580.0,0.2371114]
[1760035100471,0.19242082,120590.0,120580.0,0.0321]
[1760035100682,0.16586498,120580.0,120570.0,0.19797874]
[1760035100897,0.41223123,120590.0,120570.0,0.23712874]
[1760035101115,0.16586498,120580.0,120570.0,0.23712874]
[1760035101505,0.17917498,120580.0,120570.0,0.23712874]
[1760035101709,0.18753107,120580.0,120570.0,0.07125]
[1760035101912,0.18753107,120580.0,120570.0,0.0321]
[1760035102144,0.18753107,120580.0,120570.0,0.0341]
[1760035102318,0.18753107,120580.0,120570.0,0.19897874]
[1760035102528,0.18753107,120580.0,120570.0,0.24095874]
[1760035102723,0.17917498,120580.0,120570.0,0.24095874]
[1760035102958,0.41573498,120580.0,120570.0,0.24095874]
[1760035103364,0.41573498,120580.0,120570.0,0.23995874]
[1760035104363,0.42417762,120580.0,120570.0,0.23995874]
[1760035104566,0.18761762,120580.0,120570.0,0.0321]
[1760035104783,0.16587874,120570.0,120560.0,0.26179712]
[1760035104979,0.16587874,120570.0,120560.0,0.30377712]
[1760035105195,0.17918874,120570.0,120560.0,0.24498712]
[1760035105902,0.16592936,120570.0,120560.0,0.30396712]
[1760035106804,0.16592936,120570.0,120560.0,0.30496712]
[1760035107263,0.40248936,120570.0,120560.0,0.30596712]
[1760035107531,0.23661062,120570.0,120560.0,0.30596712]
[1760035109387,0.18755936,120570.0,120560.0,0.001]
[1760035109599,0.42411936,120570.0,120560.0,0.1668925]
[1760035109848,0.42411936,120570.0,120560.0,0.003]
[1760035110094,0.41579936,120570.0,120560.0,0.002]
[1760035110503,0.41579936,120570.0,120560.0,0.1678925]
[1760035110708,0.41579936,120570.0,120560.0,0.1698925]
[1760035111973,0.24992062,120570.0,120560.0,0.1698925]
[1760035112173,0.17923936,120570.0,120560.0,0.1698925]
[1760035112379,0.23661062,120570.0,120560.0,0.3014625]
[1760035113001,5.062e-05,120570.0,120560.0,0.2994625]
[1760035113208,0.23661062,120570.0,120560.0,0.2974625]
[1760035113440,0.23661062,120570.0,120560.0,0.3004625]
[1760035116514,0.24890062,120570.0,120560.0,0.2414825]
[1760035116962,0.01234062,120570.0,120560.0,0.2414825]
[1760035117190,0.23661062,120570.0,120560.0,0.2999225]
[1760035117618,0.23661062,120570.0,120560.0,0.2989225]
[1760035118010,0.23661062,120570.0,120560.0,0.2999225]
[1760035118365,0.23661062,120570.0,120560.0,0.2979225]
[1760035118763,0.23661062,120570.0,120560.0,0.2999225]
[1760035119205,0.23661062,120570.0,120560.0,0.2969225]
[1760035119420,0.23661062,120570.0,120560.0,0.2979225]
[1760035119637,0.23661062,120570.0,120560.0,0.2999225]
[1760035121318,5.062e-05,120570.0,120560.0,0.2999225]
[1760035121568,0.23661062,120570.0,120560.0,0.2999225]
[1760035122704,5.062e-05,120570.0,120560.0,0.2999225]
[1760035122925,0.23661062,120570.0,120560.0,0.2999225]
[1760035123519,5.062e-05,120570.0,120560.0,0.2999225]
[1760035123722,0.23661062,120570.0,120560.0,0.2999225]
[1760035126064,5.062e-05,120570.0,120560.0,0.2999225]
[1760035126512,0.23657062,120570.0,120560.0,0.2999225]
[1760035126933,5.062e-05,120570.0,120560.0,0.2999225]
[1760035127132,5.062e-05,120570.0,120560.0,0.38304456]
[1760035132757,5.062e-05,120570.0,120560.0,0.2999225]
[1760035132965,0.23657062,120570.0,120560.0,0.2999225]
[1760035133821,0.17652936,120570.0,120560.0,0.07559]
[1760035134040,0.17652936,120570.0,120560.0,0.003]
[1760035134041,0.41963936,120570.0,120560.0,0.003]
[1760035134271,0.41963936,120570.0,120560.0,0.1688925]
[1760035134477,0.41300936,120570.0,120560.0,0.1688925]
[1760035134686,0.41300936,120570.0,120560.0,0.1658925]
[1760035134919,5.062e-05,120570.0,120560.0,0.2385125]
[1760035135134,0.32277062,120570.0,120560.0,0.3000725]
[1760035135358,0.32277062,120570.0,120560.0,0.2970725]
[1760035135581,0.48864936,120570.0,120560.0,0.2980725]
[1760035135758,0.48864936,120570.0,120560.0,0.2990725]
[1760035136184,0.49924936,120570.0,120560.0,0.2990725]
[1760035136393,0.48864936,120570.0,120560.0,0.2990725]
[1760035136817,0.23653062,120570.0,120560.0,0.2990725]
[1760035137232,0.40240936,120570.0,120560.0,0.2990725]
[1760035138810,0.20566813,120570.0,120560.0,0.2990725]
[1760035139022,0.03978939,120570.0,120560.0,0.2990725]
[1760035139464,0.20566813,120570.0,120560.0,0.2990725]
[1760035139678,0.23648,120570.0,120560.0,0.2990725]
[1760035140026,0.40235874,120570.0,120560.0,0.2990725]
[1760035140432,0.25262893,120580.0,120570.0,0.16587874]
[1760035140633,0.23699984,120580.0,120570.0,0.29705874]
[1760035140830,0.00051984,120580.0,120570.0,0.29705874]
[1760035141038,0.23699984,120580.0,120570.0,0.29705874]
[1760035141245,0.00051984,120580.0,120570.0,0.29705874]
[1760035141656,0.00051984,120580.0,120570.0,0.3811808]
[1760035142078,0.00051984,120580.0,120570.0,0.3821808]
[1760035142509,0.00051984,120580.0,120570.0,0.6186608]
[1760035142998,0.00051984,120580.0,120570.0,0.6176608]
[1760035143453,0.00051984,120580.0,120570.0,0.6196608]
[1760035143662,0.00051984,120580.0,120570.0,0.3831808]
[1760035143890,0.00051984,120580.0,120570.0,0.6186608]
[1760035144105,0.00051984,120580.0,120570.0,0.6206608]
[1760035144957,0.00051984,120580.0,120570.0,0.68370247]
[1760035145227,0.00051984,120580.0,120570.0,0.44722247]
[1760035145463,0.00051984,120580.0,120570.0,0.68370247]
[1760035146408,0.00051984,120580.0,120570.0,0.44722247]
[1760035146627,0.00051984,120580.0,120570.0,0.68366247]
[1760035152433,0.00051984,120580.0,120570.0,0.44722247]
[1760035152673,0.00051984,120580.0,120570.0,0.68362247]
[1760035157333,0.00051984,120580.0,120570.0,0.30105874]
[1760035157770,0.00051984,120580.0,120570.0,0.3841808]
[1760035158217,0.00051984,120580.0,120570.0,0.3821808]
[1760035158648,0.00051984,120580.0,120570.0,0.3841808]
[1760035158865,0.00051984,120580.0,120570.0,0.30105874]
[1760035159095,0.00051984,120580.0,120570.0,0.29905874]
[1760035159393,0.00051984,120580.0,120570.0,0.30105874]
[1760035159840,0.00051984,120580.0,120570.0,0.29905874]
[1760035160049,0.00051984,120580.0,120570.0,0.29705874]
[1760035160260,0.00051984,120580.0,120570.0,0.30105874]
[1760035160464,0.01872984,120580.0,120570.0,0.23849874]
[1760035160871,0.01872984,120580.0,120570.0,0.23949874]
[1760035161453,0.01872984,120580.0,120570.0,0.23749874]
[1760035161658,0.00751984,120580.0,120570.0,0.23749874]
[1760035161858,0.17338482,120580.0,120570.0,0.23849874]
[1760035162084,0.17338482,120580.0,120570.0,0.23749874]
[1760035162330,0.18459482,120580.0,120570.0,0.23749874]
[1760035162537,0.18459482,120580.0,120570.0,0.23849874]
[1760035165299,0.72590732,120580.0,120570.0,0.001]
[1760035165473,0.72590732,120580.0,120570.0,0.002]
[1760035165474,0.48954732,120580.0,120570.0,0.002]
[1760035165639,0.42795482,120580.0,120570.0,0.002]
[1760035165846,1.50090591,120580.0,120570.0,0.002]
[1760035166456,0.91966938,120580.0,120570.0,0.002]
[1760035166654,1.23526938,120580.0,120570.0,0.002]
[1760035167326,1.00590938,120580.0,120570.0,0.002]
[1760035167462,1.54722188,120580.0,120570.0,0.002]
[1760035168424,1.22462188,120580.0,120570.0,0.002]
[1760035168666,1.24226938,120580.0,120570.0,0.002]
[1760035169706,1.54722188,120580.0,120570.0,0.002]
[1760035169962,1.24226938,120580.0,120570.0,0.002]
[1760035170177,1.58529663,120580.0,120570.0,0.002]
[1760035170534,1.26269663,120580.0,120570.0,0.002]
[1760035170755,1.58529663,120580.0,120570.0,0.002]
[1760035170944,0.73903163,120580.0,120570.0,0.002]
[1760035171150,1.54722188,120580.0,120570.0,0.002]
[1760035171995,1.24226938,120580.0,120570.0,0.002]
[1760035173595,1.54722188,120580.0,120570.0,0.002]
[1760035173810,1.31086188,120580.0,120570.0,0.002]
[1760035174005,1.54722188,120580.0,120570.0,0.002]
[1760035174214,1.62721868,120580.0,120570.0,0.002]
[1760035175476,1.39085868,120580.0,120570.0,0.002]
[1760035175713,1.96232308,120580.0,120570.0,0.002]
[1760035175970,1.65737058,120580.0,120570.0,0.002]
[1760035176204,1.96232308,120580.0,120570.0,0.001]
[1760035176422,0.1658925,120560.0,120550.0,0.00138842]
[1760035176650,1.0121575,120560.0,120550.0,0.00147249]
[1760035176890,0.483615,120560.0,120550.0,0.16737875]
[1760035177109,0.806215,120560.0,120550.0,0.00147249]
[1760035177771,0.806215,120560.0,120550.0,0.00247249]
[1760035178207,0.806215,120560.0,120550.0,0.00347249]
[1760035182115,0.806215,120560.0,120550.0,0.00247249]
[1760035182342,0.806215,120560.0,120550.0,0.00347249]
[1760035182564,0.806215,120560.0,120550.0,0.00147249]
[1760035182783,0.806215,120560.0,120550.0,0.00247249]
[1760035183013,1.21889486,120560.0,120550.0,0.00347249]
[1760035183242,0.91394236,120560.0,120550.0,0.00247249]
[1760035183692,0.91394236,120560.0,120550.0,0.00347249]
[1760035184349,0.79818706,120560.0,120550.0,0.00247249]
[1760035184564,0.88442706,120560.0,120550.0,0.00247249]
[1760035185274,0.88442706,120560.0,120550.0,0.00147249]
[1760035185494,0.57947456,120560.0,120550.0,0.00347249]
[1760035185727,0.88442706,120560.0,120550.0,0.00347249]
[1760035185919,0.88823706,120560.0,120550.0,0.00247249]
[1760035186221,0.56182706,120560.0,120550.0,0.00247249]
[1760035186427,0.88442706,120560.0,120550.0,0.00247249]
[1760035186659,0.88823706,120560.0,120550.0,0.00347249]
[1760035186876,0.88442706,120560.0,120550.0,0.00347249]
[1760035188429,0.56182706,120560.0,120550.0,0.16937875]
[1760035188681,0.56182706,120560.0,120550.0,0.23758875]
[1760035188682,0.88442706,120560.0,120550.0,0.23758875]
[1760035189128,0.88442706,120560.0,120550.0,0.07168249]
[1760035189338,0.88442706,120560.0,120550.0,0.00347249]
[1760035189553,0.56182706,120560.0,120550.0,0.00347249]
[1760035189767,0.88442706,120560.0,120550.0,0.00347249]
[1760035190089,0.88442706,120560.0,120550.0,0.00247249]
[1760035190535,0.57947456,120560.0,120550.0,0.00347249]
[1760035190747,0.88823706,120560.0,120550.0,0.00347249]
[1760035190951,0.57947456,120560.0,120550.0,0.00347249]
[1760035191308,0.88442706,120560.0,120550.0,0.00347249]
[1760035191523,0.88823706,120560.0,120550.0,0.00347249]
[1760035191735,0.25687456,120560.0,120550.0,0.00247249]
[1760035191957,0.38920113,120560.0,120550.0,0.00347249]
[1760035192177,0.62552113,120560.0,120550.0,0.00347249]
[1760035192394,1.57542613,120560.0,120550.0,0.00347249]
[1760035192827,1.57542613,120560.0,120550.0,0.00247249]
[1760035193055,1.57542613,120560.0,120550.0,0.00147249]
[1760035193270,1.57542613,120560.0,120550.0,0.00347249]
[1760035193485,1.57542613,120560.0,120550.0,0.00247249]
[1760035194330,1.59088966,120560.0,120550.0,0.00247249]
[1760035194998,1.59088966,120560.0,120550.0,0.00347249]
[1760035195840,0.98098466,120560.0,120550.0,0.00347249]
[1760035196268,1.25286613,120560.0,120550.0,0.00347249]
[1760035196485,1.27047363,120560.0,120550.0,0.00347249]
[1760035197135,1.57542613,120560.0,120550.0,0.00347249]
[1760035197354,0.68311456,120560.0,120550.0,0.04158249]
[1760035197571,0.5137525,120560.0,120550.0,0.07168249]
[1760035197783,0.8284525,120560.0,120550.0,0.13120249]
[1760035198176,0.8345525,120560.0,120550.0,0.07168249]
[1760035199071,0.1719925,120560.0,120550.0,0.07168249]
[1760035199265,0.2582325,120560.0,120550.0,0.07168249]
[1760035199514,0.4945525,120560.0,120550.0,0.07168249]
[1760035199697,0.2582325,120560.0,120550.0,0.07168249]
[1760035199852,0.4945525,120560.0,120550.0,0.07168249]
[1760035200902,0.1719925,120560.0,120550.0,0.23758875]
[1760035201097,0.1719925,120560.0,120550.0,0.29710875]
[1760035201098,0.4884525,120560.0,120550.0,0.29710875]
[1760035201301,0.1658911,120570.0,120550.0,0.29710875]
[1760035201595,0.67525316,120570.0,120560.0,0.0301]
[1760035201781,0.1658911,120570.0,120560.0,0.2936225]
[1760035201914,0.4884511,120570.0,120560.0,0.2936225]
[1760035202110,0.4930211,120570.0,120560.0,0.12773]
[1760035202342,0.2567011,120570.0,120560.0,0.2341025]
[1760035202538,0.4930211,120570.0,120560.0,0.2341025]
[1760035202959,0.4930211,120570.0,120560.0,0.2351025]
[1760035203174,0.1704611,120570.0,120560.0,0.2351025]
[1760035203368,0.4930211,120570.0,120560.0,0.2351025]
[1760035203571,0.1704611,120570.0,120560.0,0.2351025]
[1760035203775,0.4930211,120570.0,120560.0,0.2961125]
[1760035204027,0.4884511,120570.0,120560.0,0.2961125]
[1760035204209,0.4884511,120570.0,120560.0,0.2971125]
[1760035204381,0.2567011,120570.0,120560.0,0.03895]
[1760035204582,0.4930211,120570.0,120560.0,0.03895]
[1760035205671,0.4930211,120570.0,120560.0,0.002]
[1760035206037,0.4958811,120570.0,120560.0,0.002]
[1760035206238,0.4930211,120570.0,120560.0,0.002]
[1760035208462,0.4930211,120570.0,120560.0,0.1678925]
[1760035208672,0.4930211,120570.0,120560.0,0.2048425]
[1760035209099,0.4930211,120570.0,120560.0,0.2325225]
[1760035209958,0.2567011,120570.0,120560.0,0.2325225]
[1760035210399,0.2567011,120570.0,120560.0,0.2935325]
[1760035210400,0.32252,120570.0,120560.0,0.2935325]
[1760035210635,0.23628,120570.0,120560.0,0.2935325]
[1760035211058,0.00051984,120580.0,120570.0,0.16587874]
[1760035211270,0.00051984,120580.0,120570.0,0.02768]
[1760035211271,0.40266482,120580.0,120570.0,0.02768]
[1760035211494,0.40723482,120580.0,120560.0,0.1955725]
[1760035211706,0.40723482,120580.0,120570.0,0.16587874]
[1760035211904,0.17095482,120580.0,120570.0,0.16587874]
[1760035212109,0.40719482,120580.0,120570.0,0.16587874]
[1760035212486,0.40719482,120580.0,120570.0,0.16687874]
[1760035212904,0.41005482,120580.0,120570.0,0.16687874]
[1760035213074,0.17095482,120580.0,120570.0,0.16787874]
[1760035213268,0.40719482,120580.0,120570.0,0.16787874]
[1760035213676,0.40719482,120580.0,120570.0,0.20482874]
[1760035213906,0.23675984,120580.0,120570.0,0.29351874]
[1760035214326,0.00051984,120580.0,120570.0,0.29351874]
[1760035214528,0.23675984,120580.0,120570.0,0.29351874]
[1760035214728,0.00051984,120580.0,120570.0,0.29351874]
[1760035214948,0.23675984,120580.0,120570.0,0.29351874]
[1760035215148,0.00051984,120580.0,120570.0,0.29351874]
[1760035215307,0.23675984,120580.0,120570.0,0.29351874]
[1760035217760,0.00051984,120580.0,120570.0,0.29351874]
[1760035217969,0.23671984,120580.0,120570.0,0.29351874]
[1760035219369,0.00051984,120580.0,120570.0,0.3766408]
[1760035219579,0.03119984,120580.0,120570.0,0.3766408]
[1760035220054,0.00051984,120580.0,120570.0,0.3766408]
[1760035220180,0.23671984,120580.0,120570.0,0.3766408]
[1760035221735,0.00051984,120580.0,120570.0,0.3766408]
[1760035222085,0.23671984,120580.0,120570.0,0.3766408]
[1760035222301,0.00051984,120580.0,120570.0,0.3766408]
[1760035223862,0.00051984,120580.0,120570.0,0.6128008]
[1760035224589,0.00051984,120580.0,120570.0,0.63769693]
[1760035224800,0.00051984,120580.0,120570.0,0.63669693]
[1760035225223,0.00051984,120580.0,120570.0,0.40153693]
[1760035225429,0.00051984,120580.0,120570.0,0.63769693]
[1760035225644,0.00051984,120580.0,120570.0,0.63669693]
[1760035225831,0.00051984,120580.0,120570.0,0.63769693]
[1760035226438,0.00051984,120580.0,120570.0,0.63669693]
[1760035226669,0.00051984,120580.0,120570.0,0.63769693]
[1760035226883,0.00051984,120580.0,120570.0,0.40153693]
[1760035227108,0.00051984,120580.0,120570.0,0.97769693]
[1760035227766,0.00051984,120580.0,120570.0,0.74153693]
[1760035228009,0.00051984,120580.0,120570.0,0.97769693]
[1760035229349,0.00051984,120580.0,120570.0,0.74153693]
[1760035229569,0.00051984,120580.0,120570.0,0.97765693]
[1760035229995,0.00051984,120580.0,120570.0,0.74153693]
[1760035230220,0.00051984,120580.0,120570.0,0.97765693]
[1760035234904,0.00051984,120580.0,120570.0,0.74153693]
[1760035235133,0.00051984,120580.0,120570.0,0.97761693]
[1760035240264,0.00051984,120580.0,120570.0,0.74153693]
[1760035240615,0.00051984,120580.0,120570.0,0.97761693]
[1760035247629,0.00051984,120580.0,120570.0,0.74153693]
[1760035247852,0.00051984,120580.0,120570.0,0.97757693]
[1760035248505,0.00051984,120580.0,120570.0,0.74153693]
[1760035248970,0.00051984,120580.0,120570.0,0.97757693]
[1760035249473,0.00051984,120580.0,120570.0,0.97753693]
[1760035251952,0.00051984,120580.0,120570.0,0.74153693]
[1760035252407,0.00051984,120580.0,120570.0,0.97753693]
[1760035252861,0.00051984,120580.0,120570.0,0.74153693]
[1760035253125,0.00051984,120580.0,120570.0,0.97753693]
[1760035253625,0.00051984,120580.0,120570.0,0.40153693]
[1760035253845,0.00051984,120580.0,120570.0,0.6126408]
[1760035254055,0.00051984,120580.0,120570.0,0.06663]
[1760035254056,0.57317053,120580.0,120570.0,0.06663]
[1760035254290,0.16638482,120580.0,120570.0,0.23250874]
[1760035254964,0.16638482,120580.0,120570.0,0.23150874]
[1760035255412,0.00882428,120580.0,120570.0,0.23150874]
[1760035255618,0.00051984,120580.0,120570.0,0.28976874]
[1760035255823,0.00051984,120580.0,120570.0,0.28876874]
[1760035256043,0.16638482,120580.0,120570.0,0.28876874]
[1760035256508,0.17482467,120580.0,120570.0,0.28876874]
[1760035256717,0.17482467,120580.0,120570.0,0.23050874]
[1760035256931,0.17482467,120580.0,120570.0,0.23150874]
[1760035257373,0.17482467,120580.0,120570.0,0.02868]
[1760035257552,0.17482467,120580.0,120570.0,0.001]
[1760035257553,0.58161038,120580.0,120570.0,0.001]
[1760035257774,0.81761038,120580.0,120570.0,0.16687874]
[1760035257989,0.41082467,120580.0,120570.0,0.16687874]
[1760035258128,0.41082467,120580.0,120570.0,0.20645874]
[1760035258344,0.41082467,120580.0,120570.0,0.04058]
[1760035258873,0.41082467,120580.0,120570.0,0.20645874]
[1760035259105,0.41082467,120580.0,120570.0,0.04058]
[1760035259304,0.41082467,120580.0,120570.0,0.001]
[1760035259641,1.32072924,120580.0,120570.0,0.001]
[1760035260420,1.08472924,120580.0,120570.0,0.001]
[1760035260765,1.08472924,120580.0,120550.0,0.03157249]
[1760035260766,0.1658925,120560.0,120550.0,0.00147249]
[1760035261012,0.4018925,120560.0,120550.0,0.00147249]
[1760035261217,0.4018925,120560.0,120550.0,0.20695875]
[1760035262246,0.4018925,120560.0,120550.0,0.20795875]
[1760035263081,0.4018925,120560.0,120550.0,0.20895875]
[1760035263562,0.70709704,120560.0,120550.0,0.20895875]
[1760035263772,0.70709704,120560.0,120550.0,0.04305249]
[1760035264194,0.70709704,120560.0,120550.0,0.20895875]
[1760035264616,0.70709704,120560.0,120550.0,0.04305249]
[1760035264824,0.70709704,120560.0,120550.0,0.04255249]
[1760035265033,0.70709704,120560.0,120550.0,0.00297249]
[1760035265856,0.70709704,120560.0,120550.0,0.16887875]
[1760035266059,0.70709704,120560.0,120550.0,0.00297249]
[1760035267974,0.4018925,120560.0,120550.0,0.00297249]
[1760035268191,0.70709704,120560.0,120550.0,0.00297249]
[1760035268661,0.1658925,120560.0,120550.0,0.00297249]
[1760035268893,0.1658925,120560.0,120550.0,0.29286875]
[1760035269134,0.26106935,120580.0,120560.0,0.1658925]
[1760035269355,0.56627389,120580.0,120570.0,0.03799]
[1760035269585,0.16587874,120570.0,120560.0,0.086]
[1760035269796,0.16587874,120570.0,120560.0,0.2518925]
[1760035269985,0.16587874,120570.0,120560.0,0.2311325]
[1760035270239,0.40187874,120570.0,120560.0,0.2311325]
[1760035270459,0.40187874,120570.0,120560.0,0.2321325]
[1760035270887,0.40187874,120570.0,120560.0,0.2898825]
[1760035271101,0.48811874,120570.0,120560.0,0.2898825]
[1760035271540,0.16587874,120570.0,120560.0,0.2908825]
[1760035271792,0.00051984,120580.0,120570.0,0.16587874]
[1760035272021,0.00051984,120580.0,120570.0,0.28986874]
[1760035272022,0.23651984,120580.0,120570.0,0.28986874]
[1760035272484,0.00051984,120580.0,120570.0,0.28986874]
[1760035272698,0.23651984,120580.0,120570.0,0.28986874]
[1760035272934,0.00051984,120580.0,120570.0,0.3729908]
[1760035273843,0.00051984,120580.0,120570.0,0.7431427]
[1760035274065,0.00051984,120580.0,120570.0,0.9791427]
[1760035274306,0.00051984,120580.0,120570.0,0.9801427]
[1760035274528,0.00051984,120580.0,120570.0,0.9811427]
[1760035275025,1e-08,120580.0,120570.0,0.80793558]
[1760035275257,1e-08,120580.0,120570.0,1.06793557]
[1760035276068,1e-08,120580.0,120570.0,0.83393557]
[1760035276352,1e-08,120580.0,120570.0,1.06989557]
[1760035276557,1e-08,120580.0,120570.0,0.83393557]
[1760035276765,1e-08,120580.0,120570.0,1.15613557]
[1760035279082,1e-08,120580.0,120570.0,0.83393557]
[1760035279328,1e-08,120580.0,120570.0,1.15613557]
[1760035279545,1e-08,120580.0,120570.0,0.92017557]
[1760035279759,1e-08,120580.0,120570.0,1.15609557]
[1760035283167,1e-08,120580.0,120570.0,0.92017557]
[1760035283378,1e-08,120580.0,120570.0,1.15609557]
[1760035286638,1e-08,120580.0,120570.0,0.92017557]
[1760035286839,1e-08,120580.0,120570.0,1.15605557]
[1760035287051,1e-08,120580.0,120570.0,0.83393557]
[1760035287249,1e-08,120580.0,120570.0,1.15601557]
[1760035287893,1e-08,120580.0,120570.0,0.92013557]
[1760035288086,1e-08,120580.0,120570.0,1.15601557]
[1760035288296,1e-08,120580.0,120570.0,0.83393557]
[1760035288515,1e-08,120580.0,120570.0,1.15601557]
[1760035291295,1e-08,120580.0,120570.0,0.83393557]
[1760035291542,1e-08,120580.0,120570.0,1.15601557]
[1760035292511,1e-08,120580.0,120570.0,0.92013557]
[1760035292721,1e-08,120580.0,120570.0,0.77878368]
[1760035293097,1e-08,120580.0,120570.0,0.43878368]
[1760035293512,0.00821642,120580.0,120570.0,0.43878368]
[1760035293870,0.00821642,120580.0,120570.0,0.003]
[1760035293871,0.16586499,120580.0,120570.0,0.003]
[1760035294085,0.70690953,120580.0,120570.0,0.003]
[1760035294267,0.40170499,120580.0,120570.0,0.001]
[1760035294513,0.54941045,120580.0,120570.0,0.20309874]
[1760035294761,0.80147543,120580.0,120570.0,0.23098874]
[1760035295219,0.80147543,120580.0,120570.0,0.22998874]
[1760035295482,0.80147543,120580.0,120570.0,0.002]
[1760035295703,0.80147543,120580.0,120570.0,0.16787874]
[1760035295894,0.80147543,120580.0,120570.0,0.16687874]
[1760035296163,1.10667997,120580.0,120570.0,0.16687874]
[1760035296381,1.10667997,120580.0,120570.0,0.16787874]
[1760035296811,1.10667997,120580.0,120570.0,0.16687874]
[1760035297016,1.10667997,120580.0,120570.0,0.16787874]
[1760035297275,1.10667997,120580.0,120570.0,0.20409874]
[1760035297525,0.80147543,120580.0,120570.0,0.20409874]
[1760035297739,0.80147543,120580.0,120570.0,0.16787874]
[1760035297973,0.87083997,120580.0,120570.0,0.002]
[1760035298206,1.50697173,120580.0,120570.0,0.002]
[1760035299094,1.44667997,120580.0,120570.0,0.001]
[1760035299320,1.29396203,120580.0,120570.0,0.001]
[1760035299537,0.91939295,120580.0,120570.0,0.001]
[1760035299762,0.91939295,120580.0,120550.0,0.20206242]
[1760035299763,0.16588989,120570.0,120550.0,0.20206242]
[1760035299979,0.32212,120560.0,120550.0,0.23828242]
[1760035300196,0.62732454,120560.0,120550.0,0.23828242]
[1760035300727,0.62732454,120560.0,120550.0,0.23928242]
[1760035300946,0.79321704,120560.0,120550.0,0.23928406]
[1760035301389,0.4880125,120560.0,120550.0,0.23928406]
[1760035301775,0.79321704,120560.0,120550.0,0.24028406]
[1760035301994,1.09842158,120560.0,120550.0,0.00297249]
[1760035302210,1.09842158,120560.0,120550.0,0.00197249]
[1760035302419,1.09842158,120560.0,120550.0,0.00297249]
[1760035302629,0.77630158,120560.0,120550.0,0.00197249]
[1760035302809,1.09842158,120560.0,120550.0,0.00097249]
[1760035303026,1.09842158,120560.0,120550.0,0.00197249]
[1760035303668,0.77630158,120560.0,120550.0,0.00097249]
[1760035303887,0.4880125,120560.0,120550.0,0.00197249]
[1760035304097,1.09842158,120560.0,120550.0,0.00197249]
[1760035307188,1.70101688,120560.0,120550.0,0.00197249]
[1760035307364,1.93689688,120560.0,120550.0,0.00197249]
[1760035307723,1.61477688,120560.0,120550.0,0.00197249]
[1760035307905,2.28189688,120560.0,120550.0,0.00197249]
[1760035308583,1.68477688,120560.0,120550.0,0.00197249]
[1760035308788,2.36037748,120560.0,120550.0,0.00097249]
[1760035309008,1.69321748,120560.0,120550.0,0.00097249]
[1760035309189,2.36037748,120560.0,120550.0,0.00097249]
[1760035310858,0.69760706,120560.0,120550.0,0.00097249]
[1760035311029,1.60002424,120560.0,120550.0,0.00097249]
[1760035311287,1.36410424,120560.0,120550.0,0.00097249]
[1760035311484,1.60002424,120560.0,120550.0,0.00097249]
[1760035316778,1.36410424,120560.0,120550.0,0.00097249]
[1760035316990,1.60002424,120560.0,120550.0,0.00097249]
[1760035317201,1.6287666,120560.0,120550.0,0.00097249]
[1760035318528,1.3066066,120560.0,120550.0,0.00097249]
[1760035318746,1.60002424,120560.0,120550.0,0.00097249]
[1760035320167,1.29557984,120560.0,120550.0,0.00097249]
[1760035320383,1.60002424,120560.0,120550.0,0.00097249]
[1760035320797,0.98961516,120560.0,120550.0,0.00097249]
[1760035321012,1.60002424,120560.0,120550.0,0.00097249]
[1760035321218,1.63313665,120560.0,120550.0,0.00097249]
[1760035321431,1.81256989,120560.0,120550.0,0.00097249]